Cogmind - Beta 14 @@@ ROGUE MODE // 2025.03.11 @ 16:31:59 Player: Solshine Result: Destroyed by G-47 Trooper with Particle Gun Performance ------------- Evolutions (1) 500 Regions Visited (4) 800 Robots Destroyed (28) 140 Value Destroyed (664) 664 Prototype IDs (0) 0 Alien Tech Used (0) 0 Bonus (0) 0 TOTAL SCORE: 2104 Bonus ------- None Cogmind --------- Core Integrity 0/400 Matter 285/300 Energy 100/100 System Corruption 0% Temperature Cool (9) Movement Core (200) Ox3 Location -9/Mines Parts ------- > --- POWER (2) -------- (None) > --- PROPULSION (3) --- (None) > --- UTILITY (2) ------ Medium Storage Unit > --- WEAPON (2) ------- (None) > --- INVENTORY (10) --- Improved Heat Sink High-capacity Matter Pod (200) Improved Targeting Computer Peak State ------------ > --- POWER ------------ Ion Engine Light Nuclear Core > --- PROPULSION ------- Aluminum Leg Aluminum Leg Aluminum Leg > --- UTILITY ---------- Sensor Array Seismic Detector > --- WEAPON ----------- Heavy EM Pulse Gun Heavy Assault Rifle > --- INVENTORY -------- Ion Engine Improved Heat Sink Small Storage Unit High-capacity Matter Pod Improved Targeting Computer [Rating: 13] Favorites ----------- Power Ion Engine Engine Ion Engine Power Core Light Nuclear Core Propulsion Aluminum Leg Leg Aluminum Leg Utility Seismic Detector Device Seismic Detector Storage Small Storage Unit Weapon Light Assault Rifle Energy Gun Medium Laser Ballistic Gun Light Assault Rifle Launcher Grenade Launcher Build | -11 -10 -10 -9 -9 ------- Run | Yrd Mat Min Mat Min Slots Evolved 2 | . . . 2 . Power 1 | . . . 1 . Propulsion 1 | . . . 1 . Utility . | . . . . . Weapon . | . . . . . Parts Attached 33 | 7 6 7 9 4 Power 5 | 1 1 . 2 1 Engine 4 | 1 1 . 1 1 Core 1 | . . . 1 . Reactor . | . . . . . Propulsion 8 | 2 2 2 2 . Treads . | . . . . . Leg 8 | 2 2 2 2 . Wheel . | . . . . . Hover . | . . . . . Flight . | . . . . . Utility 8 | 2 . 2 3 1 Device 6 | 1 . 2 3 . Storage 2 | 1 . . . 1 Processor . | . . . . . Hackware . | . . . . . Protection . | . . . . . Artifact . | . . . . . Weapon 12 | 2 3 3 2 2 Energy Gun 7 | 1 1 2 1 2 Energy Cannon . | . . . . . Ballistic Gun 4 | 1 1 1 1 . Ballistic Cannon . | . . . . . Launcher 1 | . 1 . . . Special Weapon . | . . . . . Impact Weapon . | . . . . . Slashing Weapon . | . . . . . Piercing Weapon . | . . . . . Special Melee Weapon . | . . . . . Unidentified Prototypes . | . . . . . Parts Lost 18 | . 3 3 1 11 Power 3 | . . . . 3 Propulsion 3 | . . . . 3 Utility 3 | . . 1 . 2 Weapon 9 | . 3 2 1 3 Highest Loss Streak 9 | . 2 3 1 9 To Critical Strikes . | . . . . . Average Slot Usage (%) 93 | . 98 98 96 52 Engine 12 | . 14 14 11 5 Core 3 | . . . 11 2 Leg 27 | . 28 28 33 10 Device 16 | . 14 13 21 14 Storage 9 | . 14 14 . 6 Energy Gun 11 | . 14 12 9 5 Ballistic Gun 11 | . 11 14 9 6 Peak Build Rating 13 | 7 7 8 13 11 Average Rating 8 | 5 6 7 12 5 On Entrance 6 | . 7 7 8 11 Naked Turns . | . . . . . Heaviest Build 18 | 15 16 14 18 15 Greatest Support 30 | 20 20 20 30 30 Greatest Overweight (x) 4 | . . . . 4 Average Overweight (x) . | . . . . 1 Largest Inventory Capacity 10 | 8 8 8 8 10 Average Capacity 7 | 7 8 8 5 7 Most Carried 8 | 5 7 8 6 5 Average Carried 5 | 3 6 6 4 3 Final Capacity 10 | 8 8 8 5 10 Final Carried 7 | 5 7 7 5 3 Class Distribution -------------------- 54% | Scavenger-Mutant 45% | Mutant Dominant Class ---------------- Mutant | -10/Materials Scavenger-Mutant | -10/Mines Scavenger-Mutant | -9/Materials Mutant | -9/Mines Resources | -11 -10 -10 -9 -9 ----------- Run | Yrd Mat Min Mat Min Matter Collected 860 | 297 170 149 201 43 Remotely . | . . . . . Salvage Created 753 | 52 182 104 229 186 Parts 60 | 6 13 8 21 12 Haulers Intercepted . | . . . . . Recyclers Shooed . | . . . . . Parts Field Recycled . | . . . . . Retrieved Matter . | . . . . . Parts Self-Destructed . | . . . . . Prevented . | . . . . . Kills | -11 -10 -10 -9 -9 ------- Run | Yrd Mat Min Mat Min Combat Hostiles Destroyed 23 | . 7 2 7 7 Guns 19 | . 4 2 6 7 AOE 4 | . 3 . 1 . Classes Destroyed 4 | 1 3 . . . Tunneler 3 | 3 . . . . Watcher 2 | . 1 . 1 . Swarmer 10 | . 3 . 3 4 Grunt 13 | . 4 2 4 3 Best Kill Streak 7 | 1 4 2 5 7 Combat Bots Only 7 | . 3 2 4 7 Max Kills in Single Turn 3 | 1 3 1 1 1 Gunslinging . | . . . . . Exploded 2 | . 2 . 1 . Melee . | . . . . . Uniques/NPCs Destroyed . | . . . . . Combat | -11 -10 -10 -9 -9 -------- Run | Yrd Mat Min Mat Min Hostile Shots Fired 216 | . 43 28 35 110 Missed 54 | . 8 9 12 25 Damage Taken 2135 | . 625 272 250 988 Core 592 | . 111 77 46 358 Absorbed by Shields . | . . . . . Core Remaining (%) 62 | 100 . 24 . . Volleys Fired 102 | 9 24 15 18 36 Largest 2 | 2 2 2 2 2 Hottest 70 | 70 70 60 68 63 Shots Fired 165 | 16 43 29 27 50 Gun 164 | 16 42 29 27 50 Cannon . | . . . . . Launcher 1 | . 1 . . . Special . | . . . . . Kinetic 94 | 9 18 24 18 25 Thermal 54 | 7 22 . . 25 Explosive 1 | . 1 . . . Electromagnetic 16 | . 2 5 9 . Robot Hit Streak 9 | 3 8 3 7 9 Robot Miss Streak 5 | 2 2 3 2 5 Penetration Max . | . . . . . Secondary Targets 6 | . 2 . 1 3 Max Gunslinging Chain 1 | . 1 . 1 1 Shots Hit Robots 94 | 8 29 17 16 24 Core Hits 43 | 3 12 7 9 12 Critical Kills 1 | . . . . 1 Critical Parts Destroyed . | . . . . . Critical Strikes 3 | . . 1 1 1 Destroy 1 | . . . . 1 Corrupt 2 | . . 1 1 . Melee Attacks . | . . . . . Impact . | . . . . . Slashing . | . . . . . Piercing . | . . . . . Sneak Attacks . | . . . . . Combat Hostiles . | . . . . . Follow-up Attacks . | . . . . . Damage Inflicted 1666 | 98 842 152 256 318 Guns 1158 | 98 369 147 227 317 Cannons . | . . . . . Explosions 502 | . 473 . 29 . Melee . | . . . . . Ramming 6 | . . 5 . 1 Kinetic 643 | 50 156 120 117 200 Thermal 383 | 48 189 . 29 117 Explosive 473 | . 473 . . . Electromagnetic 161 | . 24 27 110 . Impact . | . . . . . Slashing . | . . . . . Piercing . | . . . . . Highest Corruption . | . . . . . Average Corruption . | . . . . . Corruption Purged . | . . . . . Corruption Blocked . | . . . . . Overload Shots . | . . . . . Overflow Damage 118 | . 118 . . . Projectiles . | . . . . . Explosions 118 | . 118 . . . Melee . | . . . . . Knockbacks . | . . . . . Impact . | . . . . . Kinetic . | . . . . . Secondary . | . . . . . Self-Inflicted Damage 204 | . 174 . 30 . Shots 4 | . 3 . 1 . Rammed 1 | . . . . 1 Targets Rammed 3 | . . 2 . 1 Kicked 2 | . . 2 . . Crushed . | . . . . . Highest Temperature 355 | 27 355 65 146 29 Average Temperature 71 | 9 144 20 57 8 Received Heat Transfer 948 | . 243 195 78 432 Siege Activations . | . . . . . Robots Corrupted . | . . . . . Combat Hostiles . | . . . . . Parts Fried . | . . . . . Impact Corruptions . | . . . . . Robots Melted . | . . . . . Combat Hostiles . | . . . . . Parts Melted 1 | . 1 . . . Heat Transferred 1028 | 148 555 . 50 275 Parts Sabotaged . | . . . . . Parts Stolen . | . . . . . Parts Stripped . | . . . . . Power Chain Reactions 1 | . . . 1 . Alert | -11 -10 -10 -9 -9 ------- Run | Yrd Mat Min Mat Min Peak Influence 328 | 15 328 111 219 105 Initial 46 | . 9 46 . 15 Average 84 | 4 140 55 101 68 Maximum Alert Level 1 | . 1 . 1 . Low Security (%) 94 | 100 79 100 97 100 Level 1 5 | . 20 . 2 . Level 2 . | . . . . . Level 3 . | . . . . . Level 4 . | . . . . . Level 5 . | . . . . . High Security . | . . . . . Max Security . | . . . . . Squads Dispatched 2 | . . . 2 . Investigation 1 | . . . 1 . Extermination . | . . . . . Reinforcement 1 | . . . 1 . Assault . | . . . . . Garrison . | . . . . . Intercept . | . . . . . Searches Triggered . | . . . . . Construction Impeded . | . . . . . Haulers Reinforced . | . . . . . Active Scanning Responses . | . . . . . Cargo Convoy Interrupts . | . . . . . Stealth | -11 -10 -10 -9 -9 --------- Run | Yrd Mat Min Mat Min Distress Signals 2 | . 1 . 1 . Communications Jammed . | . . . . . Distress Signals . | . . . . . Times Spotted 42 | . 16 5 11 10 Peak Tracking Total 7 | . 5 2 4 7 Tactical Retreats 4 | . 1 2 1 . Traps | -11 -10 -10 -9 -9 ------- Run | Yrd Mat Min Mat Min Traps Triggered . | . . . . . Indirectly . | . . . . . Trap Hack Attempts . | . . . . . Triggered . | . . . . . Disarmed 4 | . 4 . . . Reprogrammed . | . . . . . Reused . | . . . . . Traps Extracted . | . . . . . Installed . | . . . . . Triggered . | . . . . . Machines | -11 -10 -10 -9 -9 ---------- Run | Yrd Mat Min Mat Min Machines Disabled 3 | . 3 . . . Max in Single Turn 1 | . 1 . . . Machines Repaired . | . . . . . Machines Dismantled . | . . . . . Machines Sabotaged . | . . . . . Overloaded Fab Kills . | . . . . . Hacking | -11 -10 -10 -9 -9 --------- Run | Yrd Mat Min Mat Min Machines Accessed 8 | . 3 . 5 . Terminals 7 | . 2 . 5 . Fabricators . | . . . . . Repair Stations . | . . . . . Recycling Units 1 | . 1 . . . Scanalyzers . | . . . . . Garrison Access . | . . . . . Total Hacks 16 | . 6 . 10 . Successful 6 | . 3 . 3 . Failed 10 | . 3 . 7 . Catastrophic 1 | . . . 1 . Database Lockouts . | . . . . . Manual . | . . . . . Terminals 13 | . 3 . 10 . Fabricators . | . . . . . Repair Stations . | . . . . . Recycling Units 3 | . 3 . . . Scanalyzers . | . . . . . Garrison Access . | . . . . . Terminal Hacks 5 | . 2 . 3 . Record 2 | . 1 . 1 . Alert Level 1 | . . . 1 . Disarm Traps 1 | . 1 . . . Transport Status 1 | . . . 1 . Fabricator Hacks . | . . . . . Repair Station Hacks . | . . . . . Recycling Unit Hacks 1 | . 1 . . . Report Inventory 1 | . 1 . . . Scanalyzer . | . . . . . Garrison Access Hacks . | . . . . . Unauthorized Hacks . | . . . . . Terminals . | . . . . . Fabricators . | . . . . . Repair Stations . | . . . . . Recycling Units . | . . . . . Scanalyzers . | . . . . . Garrison Access . | . . . . . Data Cores Recovered . | . . . . . Used . | . . . . . Hacking Detections 5 | . 2 . 3 . Full Trace Events 2 | . 1 . 1 . Feedback Events . | . . . . . Feedback Blocked . | . . . . . Robot Schematics Acquired . | . . . . . Robots Built . | . . . . . Authchips . | . . . . . Time . | . . . . . Total Robot Build Rating . | . . . . . Part Schematics Acquired . | . . . . . Parts Built . | . . . . . Authchips . | . . . . . Time . | . . . . . Total Part Build Rating . | . . . . . Parts Repaired . | . . . . . Time . | . . . . . Parts Recycled . | . . . . . Recycled Matter . | . . . . . Retrieved Matter . | . . . . . Retrieved Components . | . . . . . Parts Scanalyzed . | . . . . . Part Schematics Acquired . | . . . . . Parts Damaged . | . . . . . Bothacking | -11 -10 -10 -9 -9 ------------ Run | Yrd Mat Min Mat Min Used RIF Installer . | . . . . . Robots Hacked . | . . . . . Non-combat . | . . . . . Combat . | . . . . . Robot Hacks Applied . | . . . . . Relay Couplers Released . | . . . . . Fabnet Peak Effective % . | . . . . . Robots Rewired . | . . . . . Allies Hacked . | . . . . . Hacks Repelled . | . . . . . Allies | -11 -10 -10 -9 -9 -------- Run | Yrd Mat Min Mat Min Total Allies . | . . . . . Largest Group . | . . . . . Highest-Rated Group . | . . . . . Highest-Rated Ally . | . . . . . Total Orders . | . . . . . Ally Attacks . | . . . . . Total Damage . | . . . . . Kills . | . . . . . Allies Corrupted . | . . . . . Allies Melted . | . . . . . Intel | -11 -10 -10 -9 -9 ------- Run | Yrd Mat Min Mat Min Robot Analysis Total . | . . . . . Derelict Logs Recovered 2 | . . 2 . . Drone Launches . | . . . . . Drone Recoveries . | . . . . . Exploration | -11 -10 -10 -9 -9 ------------- Run | Yrd Mat Min Mat Min Turns Passed 1802 | 163 423 569 502 145 Spaces Moved 1176 | 109 284 406 353 24 Core 31 | 16 . . . 15 Treads . | . . . . . Legs 1145 | 93 284 406 353 9 Wheels . | . . . . . Hover . | . . . . . Flight . | . . . . . Fastest Speed 50 | 50 120 120 120 120 Average Speed 120 | 109 120 120 120 174 Slowest Speed 250 | 120 120 120 120 250 Overloaded Moves . | . . . . . Propulsion Burnouts . | . . . . . Robots Hopped . | . . . . . Cave-ins Triggered . | . . . . . Exploration Rate (%) 26 | 4 31 69 23 6 Regions Visited 4 Branch Regions 2 Pre-discovered Areas 1 | . . 1 . . Known Exits Taken . | . . . . . Unknown Exits Taken 4 | 1 1 1 1 . Scrap Searched 1 | . . 1 . . Spaces Dug . | . . . . . Terrain Destroyed 28 | . 22 . 6 . Melee . | . . . . . Projectile . | . . . . . AOE 28 | . 22 . 6 . Terrain Rammed . | . . . . . Walls Destroyed . | . . . . . Machines Disabled . | . . . . . Actions | -11 -10 -10 -9 -9 --------- Run | Yrd Mat Min Mat Min Total 1402 | 136 322 465 404 75 Wait 43 | . . 19 16 8 Move 1172 | 108 283 405 352 24 Hop . | . . . . . Pick Up 34 | 12 7 10 3 2 Fast Attach 2 | . . . 2 . Attach 20 | 7 3 4 2 4 Detach . | . . . . . Swap 11 | . 3 3 5 . Drop 15 | . 2 7 6 . Fire 102 | 9 24 15 18 36 Melee . | . . . . . Ram 1 | . . . . 1 Kick 2 | . . 2 . . Crush . | . . . . . Escape Stasis . | . . . . . Rewire . | . . . . . Trap . | . . . . . Miscellaneous . | . . . . . Route ------- -11/Scrapyard -10/Materials -10/Mines -9/Materials -9/Mines History --------- Turn | Location | Event 3 | -11/Scrapyard | Discovered new exit (range 15) 164 | -11/Scrapyard | Entered Materials 313 | -10/Materials | Build established: Mutant 581 | -10/Materials | Discovered new exit (range 6) 587 | -10/Materials | Entered Mines 746 | -10/Mines | Core integrity fell below 50% 817 | -10/Mines | Lost 3 parts (1u2w) 1098 | -10/Mines | Learned Materials trap positions 1137 | -10/Mines | Discovered new exit (range 15) 1143 | -10/Mines | Learned location of Zion (-7) 1156 | -10/Mines | Entered Materials 1156 | -9/Materials | Evolved 2 slots: Power x1, Propulsion x1 1157 | -9/Materials | Loaded intel: 9 trap records 1458 | -9/Materials | Build established: Scavenger-Mutant 1641 | -9/Materials | Discovered new exit (range 15) 1658 | -9/Materials | Entered Mines 1726 | -9/Mines | Met a Derelict bent on vengeance 1746 | -9/Mines | Destroyed 7 combat bots 1748 | -9/Mines | Core integrity fell below 50% 1784 | -9/Mines | Lost 9 parts (3p3n1u2w) 1798 | -9/Mines | Core integrity fell below 20% 1803 | -9/Mines | Destroyed by G-47 Trooper with Particle Gun Last Messages --------------- S-10 Pest destroyed. K-01 Serf collects debris. Lgt. Ion Engine destroyed. S-10 Pest destroyed. Switching to secondary target: G-47 Trooper. K-01 Serf collects debris. Slammed into K-01 Serf. Acquired 15 matter. Acquired Sml. Laser. Hvy. Assault Rifle destroyed. Acquired 13 matter. Sml. Laser destroyed. K-01 Serf cleans the Seismic Survey Station. K-01 Serf collects debris. K-01 Serf cleans the Seismic Survey Station. Sensor Array destroyed. Sml. Laser destroyed. Critical hit (Burn: +37). K-01 Serf cleans the Seismic Survey Station. Map ----- +----------------------------------------------------+ | ??????????????????????????????????????? | | ??????????????????????????????????????? | | ??????????????????????????????????????? | | ??????????????????????????????????????? | | ??????????????????????????????????????? | | ??????????????????????????????????????? | | ??????????????????????????????????????? | | ??????????????????????????????????????? | | ??????????????????????????????????????? | | ??????????????????????????????????????? | | ??????????????????????????????????????? | | ??????????????????????????????????????? | | ??????????????????????????????????????? | | ??????????????????????????????????????? | | ??????????????????????????????????????? | | ??????????????????????????????????????? | | ??????????????????????????????????????? | | ??????????????????????????????????????? | | ??????????????????????????????????????? | | ??????????????????????????????????????? | | ????????########??????????????????????? | | ????????# k #??????????????????????? | | ????????# """g#??????????????????????? | | ???????## """ #??????????????????????? | | ???????# """ #??????????????????????? | | ???????# gg@###????????????????????? | | ???????# ######==????????????????????? | | ???????# #????#%#????????????????????? | | ???????# #????#!#????????????????????? | | ???????# ######!#????????????????????? | | ???????# ##* ==%#????????????????????? | | ???????# = ####????????????????????? | | ?????### [##???????????????????????? | | ????## ##????????????????????????? | | ????# ##?????????????????????????? | | ???# #??????????????????????????? | | ???# ##??????????????????????????? | | ???# ##???????????????????????????? | | ???## #?????????????????????????????? | | ????####??????????????????????????????? | | ??????????????????????????????????????? | | ??????????????????????????????????????? | | ??????????????????????????????????????? | | ??????????????????????????????????????? | | ??????????????????????????????????????? | | ??????????????????????????????????????? | | ??????????????????????????????????????? | | ??????????????????????????????????????? | | ??????????????????????????????????????? | | ??????????????????????????????????????? | +----------------------------------------------------+ Best States ------------- Heat Dissipation 28 Energy Generation 19 Energy Capacity 310 Matter Stores 300 Matter Capacity 300 Sight Range 16 Robot Scan Range 14 Terrain Scan Density 10 Evasion (%) 55 Item Schematics ----------------- None Robot Schematics ------------------ None Fabricated ------------ Nothing Alien Tech Used ----------------- None Achievements -------------- None Challenges ------------ None Game ------ Seed MetaFissionGuard Manual? 0 Play Time 00:28:48 Cumulative 1.8 hours Start 2025.03.11 @ 16:00:57 End 2025.03.11 @ 16:31:59 Sessions 1 Manual Loads 0 Difficulty Rogue Special Mode None Game No. 4 Rogue 4 Adventurer 0 Explorer 0 Win Type - Total 0 Types 0/0/0/0/0/0/0/0/0 Lore% 1 Gallery% 3 Achievement% 4 Wizard Run 0 Options --------- Layout 1 ASCII 0 Keyboard 0 Movement Numpad Keybinds 0 Fullscreen 1 Font 24/Smallcaps Map View 50x35 Zoom Use 0% Tactical HUD 0 Map Filters NONE Filters NONE Steam 1 RUN: 341b8752-4c43-4216-a3f8-4e630ffb9f03